fUSD/lending_fUSD_20240624
["ID","MTS","AMOUNT","RATE_DAILY","PERIOD"]
[330273246,1719221445321,-500.0,0.00019178,2]
[330273247,1719221445331,-500.0,0.00019178,2]
[330273248,1719221445342,-500.0,0.00019178,2]
[330273249,1719221445353,-500.0,0.00019178,2]
[330273250,1719221445363,-500.0,0.00019178,2]
[330273251,1719221445374,-390.04429515,0.00019178,2]
[330273252,1719221445384,-652.98,0.00019178,2]
[330273253,1719221445395,-658.16,0.00019178,2]
[330273254,1719221445405,-1100.8,0.00019178,2]
[330273255,1719221445415,-808.21,0.00019178,2]
[330273256,1719221445425,-500.0,0.00019178,2]
[330273257,1719221445436,-502.10935505,0.00019178,2]
[330273258,1719221445446,-580.36,0.00019178,2]
[330273259,1719221445455,-500.0,0.00019178,2]
[330273260,1719221445465,-600.96,0.00019178,2]
[330273261,1719221445476,-541.37,0.00019178,2]
[330273262,1719221445486,-500.0,0.00019178,2]
[330273263,1719221445497,-500.0,0.00019178,2]
[330273264,1719221445507,-2529.06,0.00019178,2]
[330273265,1719221445519,-2863.88,0.00019178,2]
[330273266,1719221445529,-500.0,0.00019178,2]
[330273267,1719221445540,-500.0,0.00019178,2]
[330273268,1719221445551,-500.0,0.00019178,2]
[330273269,1719221445562,-500.0,0.00019178,2]
[330273270,1719221445572,-500.0,0.00019178,2]
[330273271,1719221445583,-500.0,0.00019178,2]
[330273272,1719221445594,-500.0,0.00019178,2]
[330273273,1719221445604,-500.0,0.00019178,2]
[330273274,1719221445616,-623.73,0.00019178,2]
[330273275,1719221445627,-500.0,0.00019178,2]
[330273276,1719221445637,-653.53,0.00019178,2]
[330273277,1719221445647,-763.67,0.00019178,2]
[330273278,1719221445658,-500.0,0.00019178,2]
[330273279,1719221445669,-1808.46,0.00019178,2]
[330273280,1719221445680,-500.0,0.00019178,2]
[330273281,1719221445690,-500.0,0.00019178,2]
[330273282,1719221445701,-500.0,0.00019178,2]
[330273283,1719221445711,-500.0,0.00019178,2]
[330273284,1719221445722,-500.0,0.00019178,2]
[330273285,1719221445734,-610.29,0.00019178,2]
[330273286,1719221445745,-908.15,0.00019178,2]
[330273287,1719221445756,-500.0,0.00019178,2]
[330273288,1719221445766,-500.0,0.00019178,2]
[330273289,1719221445777,-500.0,0.00019178,2]
[330273290,1719221445788,-533.28,0.00019178,2]
[330273291,1719221445798,-500.0,0.00019178,2]
[330273292,1719221445808,-632.62,0.00019178,2]
[330273293,1719221445818,-584.9,0.00019178,2]
[330273294,1719221445829,-500.0,0.00019178,2]
[330273295,1719221445838,-512.0,0.00019178,2]
[330273296,1719221445848,-500.0,0.00019178,2]
[330273297,1719221445858,-500.0,0.00019178,2]
[330273298,1719221445867,-500.0,0.00019178,2]
[330273299,1719221445877,-500.0,0.00019178,2]
[330273300,1719221445887,-1091.83,0.00019178,2]
[330273301,1719221445897,-500.0,0.00019178,2]
[330273302,1719221445907,-533.39,0.00019178,2]
[330273303,1719221445917,-500.0,0.00019178,2]
[330273304,1719221445927,-500.0,0.00019178,2]
[330273305,1719221445989,-500.0,0.00019178,2]
[330273306,1719221446000,-500.0,0.00019178,2]
[330273307,1719221446011,-500.0,0.00019178,2]
[330273308,1719221446022,-575.21865746,0.00019178,2]
[330273309,1719221446033,-431.58579202,0.00019178,2]
[330273310,1719221446043,-500.0,0.00019178,2]
[330273311,1719221446054,-500.0,0.00019178,2]
[330273312,1719221446064,-1109.31,0.00019178,2]
[330273313,1719221446074,-500.0,0.00019178,2]
[330273314,1719221446088,-500.0,0.00019178,2]
[330273315,1719221446098,-500.0,0.00019178,2]
[330273316,1719221446107,-500.0,0.00019178,2]
[330273317,1719221446119,-738.89,0.00019178,2]
[330273318,1719221446130,-500.0,0.00019178,2]
[330273319,1719221446140,-500.0,0.00019178,2]
[330273320,1719221446151,-186.78,0.00019178,2]
[330273321,1719221446163,-932.5,0.00019178,2]
[330273322,1719221446174,-500.0,0.00019178,2]
[330273323,1719221446185,-562.90306503,0.00019178,2]
[330273324,1719221446196,-690.76,0.00019178,2]
[330273325,1719221446208,-500.0,0.00019178,2]
[330273326,1719221446218,-606.97769325,0.00019178,2]
[330273327,1719221446230,-500.0,0.00019178,2]
[330273328,1719221446241,-573.56,0.00019178,2]
[330273329,1719221446251,-500.0,0.00019178,2]
[330273330,1719221446263,-500.0,0.00019178,2]
[330273331,1719221446273,-500.0,0.00019178,2]
[330273332,1719221446283,-500.0,0.00019178,2]
[330273333,1719221446292,-500.0,0.00019178,2]
[330273334,1719221446302,-500.0,0.00019178,2]
[330273335,1719221446312,-2102.4,0.00019178,2]
[330273336,1719221446322,-530.62723412,0.00019178,2]
[330273337,1719221446332,-500.0,0.00019178,2]
[330273338,1719221446342,-500.0,0.00019178,2]
[330273339,1719221446351,-647.47509981,0.00019178,2]
[330273340,1719221446361,-500.0,0.00019178,2]
[330273341,1719221446371,-500.0,0.00019178,2]
[330273342,1719221446381,-500.0,0.00019178,2]
[330273343,1719221446390,-500.0,0.00019178,2]
[330273344,1719221446399,-500.0,0.00019178,2]
[330273345,1719221446409,-500.0,0.00019178,2]
[330273346,1719221446418,-500.0,0.00019178,2]
[330273347,1719221446428,-500.0,0.00019178,2]
[330273348,1719221446438,-500.0,0.00019178,2]
[330273349,1719221446449,-500.0,0.00019178,2]
[330273350,1719221446458,-500.0,0.00019178,2]
[330273351,1719221446467,-500.0,0.00019178,2]
[330273352,1719221446477,-500.0,0.00019178,2]
[330273353,1719221446486,-3401.89,0.00019178,2]
[330273354,1719221446495,-500.0,0.00019178,2]
[330273355,1719221446505,-501.94,0.00019178,2]
[330273356,1719221446514,-500.0,0.00019178,2]
[330273357,1719221446524,-500.0,0.00019178,2]
[330273358,1719221446533,-500.0,0.00019178,2]
[330273359,1719221446543,-881.78,0.00019178,2]
[330273360,1719221446552,-1798.69,0.00019178,2]
[330273361,1719221446562,-500.0,0.00019178,2]
[330273362,1719221446571,-500.0,0.00019178,2]
[330273363,1719221446581,-520.78118488,0.00019178,2]
[330273364,1719221446592,-1656.04,0.00019178,2]
[330273365,1719221446602,-500.0,0.00019178,2]
[330273366,1719221446612,-500.0,0.00019178,2]
[330273367,1719221446622,-500.0,0.00019178,2]
[330273368,1719221446631,-500.0,0.00019178,2]
[330273369,1719221446640,-1396.5,0.00019178,2]
[330273370,1719221446649,-500.0,0.00019178,2]
[330273371,1719221446659,-500.0,0.00019178,2]
[330273372,1719221446668,-500.0,0.00019178,2]
[330273373,1719221446677,-500.0,0.00019178,2]
[330273374,1719221446687,-500.0,0.00019178,2]
[330273375,1719221446696,-1444.01,0.00019178,2]
[330273376,1719221446706,-1145.17,0.00019178,2]
[330273377,1719221446715,-500.0,0.00019178,2]
[330273378,1719221446724,-500.0,0.00019178,2]
[330273379,1719221446733,-508.95334661,0.00019178,2]
[330273380,1719221446743,-500.0,0.00019178,2]
[330273381,1719221446752,-500.0,0.00019178,2]
[330273382,1719221446761,-500.0,0.00019178,2]
[330273383,1719221446770,-500.0,0.00019178,2]
[330273384,1719221446779,-2054.46,0.00019178,2]
[330273385,1719221446788,-10044.42,0.00019178,2]
[330273386,1719221446798,-728.03,0.00019178,2]
[330273387,1719221446808,-500.0,0.00019178,2]
[330273388,1719221446819,-500.0,0.00019178,2]
[330273389,1719221446828,-500.0,0.00019178,2]
[330273390,1719221446841,-685.73,0.00019178,2]
[330273391,1719221446851,-500.0,0.00019178,2]
[330273392,1719221446860,-500.0,0.00019178,2]
[330273393,1719221446870,-500.0,0.00019178,2]
[330273394,1719221446879,-500.0,0.00019178,2]
[330273395,1719221446889,-500.0,0.00019178,2]
[330273396,1719221446898,-500.0,0.00019178,2]
[330273397,1719221446907,-500.0,0.00019178,2]
[330273398,1719221446918,-500.0,0.00019178,2]
[330273399,1719221446928,-722.97,0.00019178,2]
[330273400,1719221446937,-858.63,0.00019178,2]
[330273401,1719221446947,-500.0,0.00019178,2]
[330273402,1719221446957,-500.0,0.00019178,2]
[330273403,1719221446967,-500.0,0.00019178,2]
[330273404,1719221446977,-500.0,0.00019178,2]
[330273405,1719221446986,-514.55201884,0.00019178,2]
[330273406,1719221446996,-500.0,0.00019178,2]
[330273407,1719221447005,-608.78,0.00019178,2]
[330273408,1719221447014,-500.0,0.00019178,2]
[330273409,1719221447024,-500.0,0.00019178,2]
[330273410,1719221447033,-500.0,0.00019178,2]
[330273411,1719221447043,-500.0,0.00019178,2]
[330273412,1719221447054,-530.98,0.00019178,2]
[330273413,1719221447063,-2951.6,0.00019178,2]
[330273414,1719221447073,-877.57,0.00019178,2]
[330273415,1719221447089,-500.0,0.00019178,2]
[330273416,1719221447099,-500.0,0.00019178,2]
[330273417,1719221447108,-500.0,0.00019178,2]
[330273418,1719221447121,-500.0,0.00019178,2]
[330273419,1719221447131,-500.0,0.00019178,2]
[330273420,1719221447141,-500.0,0.00019178,2]
[330273421,1719221447151,-500.0,0.00019178,2]
[330273422,1719221447163,-14859.61,0.00019178,2]
[330273423,1719221447174,-500.0,0.00019178,2]
[330273424,1719221447183,-500.0,0.00019178,2]
[330273425,1719221447192,-500.0,0.00019178,2]
[330273426,1719221447202,-500.0,0.00019178,2]
[330273427,1719221447212,-880.92,0.00019178,2]
[330273428,1719221447222,-500.0,0.00019178,2]
[330273429,1719221447232,-863.63,0.00019178,2]
[330273430,1719221447242,-1665.06,0.00019178,2]
[330273431,1719221447252,-500.0,0.00019178,2]
[330273432,1719221447263,-500.0,0.00019178,2]
[330273433,1719221447272,-500.0,0.00019178,2]
[330273434,1719221447282,-500.0,0.00019178,2]
[330273435,1719221447291,-500.0,0.00019178,2]
[330273436,1719221447301,-500.0,0.00019178,2]
[330273437,1719221447312,-1512.7,0.00019178,2]
[330273438,1719221447321,-500.0,0.00019178,2]
[330273439,1719221447331,-500.0,0.00019178,2]
[330273440,1719221447341,-300.0,0.00019178,2]
[330273441,1719221447351,-197.64337646,0.00019178,2]
[330273442,1719221447362,-500.0,0.00019178,2]
[330273443,1719221447372,-1138.11,0.00019178,2]
[330273444,1719221447381,-500.0,0.00019178,2]
[330273445,1719221447391,-500.0,0.00019178,2]
[330273446,1719221447401,-500.0,0.00019178,2]
[330273447,1719221447412,-500.0,0.00019178,2]
[330273448,1719221447422,-500.0,0.00019178,2]
[330273449,1719221447432,-391.10433718,0.00019178,2]
[330273450,1719221447443,-512.86300962,0.00019178,2]
[330273451,1719221447453,-500.0,0.00019178,2]
[330273452,1719221447462,-622.35111184,0.00019178,2]
[330273453,1719221447472,-500.0,0.00019178,2]
[330273454,1719221447481,-500.0,0.00019178,2]
[330273455,1719221447491,-922.67,0.00019178,2]
[330273456,1719221447500,-500.0,0.00019178,2]
[330273457,1719221447510,-181.39301456,0.00019178,2]
[330273458,1719221447519,-500.0,0.00019178,2]
[330273459,1719221447529,-692.88,0.00019178,2]
[330273460,1719221447538,-1014.99,0.00019178,2]
[330273461,1719221447547,-500.0,0.00019178,2]
[330273462,1719221447556,-500.0,0.00019178,2]
[330273463,1719221447566,-500.0,0.00019178,2]
[330273464,1719221447576,-500.0,0.00019178,2]
[330273465,1719221447586,-500.0,0.00019178,2]
[330273466,1719221447595,-500.0,0.00019178,2]
[330273467,1719221447605,-724.34,0.00019178,2]
[330273468,1719221447614,-745.13,0.00019178,2]
[330273469,1719221447625,-1843.17,0.00019178,2]
[330273470,1719221447635,-500.0,0.00019178,2]
[330273471,1719221447645,-772.68,0.00019178,2]
[330273472,1719221447654,-500.0,0.00019178,2]
[330273473,1719221447664,-476.24,0.00019178,2]
[330273474,1719221447674,-588.67,0.00019178,2]
[330273475,1719221447683,-1421.28,0.00019178,2]
[330273476,1719221447693,-1937.34,0.00019178,2]
[330273477,1719221447702,-500.0,0.00019178,2]
[330273478,1719221447712,-500.0,0.00019178,2]
[330273479,1719221447721,-500.0,0.00019178,2]
[330273480,1719221447731,-500.0,0.00019178,2]
[330273481,1719221447741,-840.14,0.00019178,2]
[330273482,1719221447753,-500.0,0.00019178,2]
[330273483,1719221447763,-1094.97,0.00019178,2]
[330273484,1719221447773,-500.0,0.00019178,2]
[330273485,1719221447782,-500.0,0.00019178,2]
[330273486,1719221447792,-528.93,0.00019178,2]
[330273487,1719221447802,-500.0,0.00019178,2]
[330273488,1719221447812,-500.0,0.00019178,2]
[330273489,1719221447822,-500.0,0.00019178,2]
[330273490,1719221447831,-610.19,0.00019178,2]
[330273491,1719221447841,-500.0,0.00019178,2]
[330273492,1719221447851,-500.0,0.00019178,2]
[330273493,1719221447861,-589.19,0.00019178,2]
[330273494,1719221447871,-500.0,0.00019178,2]
[330273495,1719221447881,-500.0,0.00019178,2]
[330273496,1719221447891,-939.72,0.00019178,2]
[330273497,1719221447901,-1202.18,0.00019178,2]
[330273498,1719221447911,-870.19,0.00019178,2]
[330273499,1719221447920,-500.0,0.00019178,2]
[330273500,1719221447931,-500.0,0.00019178,2]
[330273501,1719221447941,-500.0,0.00019178,2]
[330273502,1719221447951,-1030.47,0.00019178,2]
[330273503,1719221447960,-1039.09,0.00019178,2]
[330273504,1719221447970,-506.77053557,0.00019178,2]
[330273505,1719221447979,-2116.67,0.00019178,2]
[330273506,1719221447989,-693.85,0.00019178,2]
[330273507,1719221448000,-500.0,0.00019178,2]
[330273508,1719221448009,-635.53,0.00019178,2]
[330273509,1719221448019,-500.0,0.00019178,2]
[330273510,1719221448029,-500.0,0.00019178,2]
[330273511,1719221448038,-500.0,0.00019178,2]
[330273512,1719221448048,-500.0,0.00019178,2]
[330273513,1719221448058,-1486.41,0.00019178,2]
[330273514,1719221448068,-1895.67,0.00019178,2]
[330273515,1719221448080,-954.61,0.00019178,2]
[330273516,1719221448091,-500.0,0.00019178,2]
[330273517,1719221448100,-1270.74,0.00019178,2]
[330273518,1719221448110,-1727.08,0.00019178,2]
[330273519,1719221448119,-620.47,0.00019178,2]
[330273520,1719221448130,-500.0,0.00019178,2]
[330273521,1719221448140,-500.0,0.00019178,2]
[330273522,1719221448149,-1536.5,0.00019178,2]
[330273523,1719221448161,-500.0,0.00019178,2]
[330273524,1719221448173,-500.0,0.00019178,2]
[330273525,1719221448182,-500.0,0.00019178,2]
[330273526,1719221448195,-500.0,0.00019178,2]
[330273527,1719221448204,-500.0,0.00019178,2]
[330273528,1719221448215,-500.0,0.00019178,2]
[330273529,1719221448224,-500.0,0.00019178,2]
[330273530,1719221448234,-1096.63,0.00019178,2]
[330273531,1719221448244,-661.9,0.00019178,2]
[330273532,1719221448254,-500.0,0.00019178,2]
[330273533,1719221448265,-1358.05,0.00019178,2]
[330273534,1719221448274,-500.0,0.00019178,2]
[330273535,1719221448284,-1010.56,0.00019178,2]
[330273536,1719221448294,-500.0,0.00019178,2]
[330273537,1719221448304,-500.0,0.00019178,2]
[330273538,1719221448313,-500.0,0.00019178,2]
[330273539,1719221448323,-1862.43,0.00019178,2]
[330273540,1719221448332,-500.0,0.00019178,2]
[330273541,1719221448342,-500.0,0.00019178,2]
[330273542,1719221448351,-500.0,0.00019178,2]
[330273543,1719221448361,-501.04615248,0.00019178,2]
[330273544,1719221448371,-1311.74,0.00019178,2]
[330273545,1719221448380,-500.0,0.00019178,2]
[330273546,1719221448390,-569.02,0.00019178,2]
[330273547,1719221448399,-612.46,0.00019178,2]
[330273548,1719221448409,-500.0,0.00019178,2]
[330273549,1719221448420,-500.0,0.00019178,2]
[330273550,1719221448430,-500.0,0.00019178,2]
[330273551,1719221448440,-500.0,0.00019178,2]
[330273552,1719221448450,-500.0,0.00019178,2]
[330273553,1719221448461,-1493.59,0.00019178,2]
[330273554,1719221448471,-774.27,0.00019178,2]
[330273555,1719221448480,-1076.34,0.00019178,2]
[330273556,1719221448490,-1180.3,0.00019178,2]
[330273557,1719221448500,-1602.79,0.00019178,2]
[330273558,1719221448510,-500.0,0.00019178,2]
[330273559,1719221448520,-596.37,0.00019178,2]
[330273560,1719221448529,-500.0,0.00019178,2]
[330273561,1719221448538,-500.0,0.00019178,2]
[330273562,1719221448548,-547.78256587,0.00019178,2]
[330273563,1719221448571,-356.70743413,0.00019178,2]
[330273564,1719221448580,-612.94786284,0.00019178,2]
[330273565,1719221448592,-273.03265576,0.00019178,2]
[330273566,1719221448626,-1737.35502401,0.00019178,2]
[330273567,1719221448639,-356.69583525,0.00019178,2]
[330273568,1719221448652,-668.56862214,0.00019178,2]
[330273569,1719221448663,-400.33002007,0.00019178,2]
[330273570,1719221448676,-99.66997993,0.00019178,2]
[330273571,1719221448686,-500.0,0.00019178,2]
[330273572,1719221448696,-1401.97,0.00019178,2]
[330273573,1719221448705,-500.0,0.00019178,2]
[330273574,1719221448716,-500.0,0.00019178,2]
[330273575,1719221448726,-500.0,0.00019178,2]
[330273576,1719221448736,-1867.05,0.00019178,2]
[330273577,1719221448746,-500.0,0.00019178,2]
[330273578,1719221448756,-335.11002007,0.00019178,2]
[330273579,1719221448769,-275.950685,0.00019178,2]
[330273580,1719221448781,-417.81286233,0.00019178,2]
[330273581,1719221448794,-654.12187605,0.00019178,2]
[330273582,1719221448806,-234.18455655,0.00019178,2]
[330273583,1719221448816,-539.5,0.00019178,2]
[330273584,1719221448826,-747.4,0.00019178,2]
[330273585,1719221448835,-550.72,0.00019178,2]
[330273586,1719221448845,-5870.36,0.00019178,2]
[330273587,1719221448855,-2388.91,0.00019178,2]
[330273588,1719221448864,-500.0,0.00019178,2]
[330273589,1719221448874,-500.0,0.00019178,2]
[330273590,1719221448883,-500.0,0.00019178,2]
[330273591,1719221448893,-501.37,0.00019178,2]
[330273592,1719221448903,-500.0,0.00019178,2]
[330273593,1719221448913,-500.0,0.00019178,2]
[330273594,1719221448923,-1499.24,0.00019178,2]
[330273595,1719221448933,-500.0,0.00019178,2]
[330273596,1719221448943,-500.0,0.00019178,2]
[330273597,1719221448953,-3128.36,0.00019178,2]
[330273598,1719221448963,-500.0,0.00019178,2]
[330273599,1719221448973,-784.49,0.00019178,2]
[330273600,1719221448983,-1236.09,0.00019178,2]
[330273601,1719221448993,-500.0,0.00019178,2]
[330273602,1719221449002,-2500.0,0.00019178,3]
[330273603,1719221449012,-500.0,0.00019178,2]
[330273604,1719221449022,-500.0,0.00019178,2]
[330273605,1719221449032,-500.0,0.00019178,2]
[330273606,1719221449042,-500.0,0.00019178,2]
[330273607,1719221449052,-570.65,0.00019178,2]
[330273608,1719221449062,-500.0,0.00019178,2]
[330273609,1719221449073,-500.0,0.00019178,2]
[330273610,1719221449087,-500.0,0.00019178,2]
[330273611,1719221449097,-500.0,0.00019178,2]
[330273612,1719221449107,-1087.64,0.00019178,2]
[330273613,1719221449118,-500.0,0.00019178,2]
[330273614,1719221449128,-1492.08,0.00019178,2]
[330273615,1719221449139,-2784.87,0.00019178,2]
[330273616,1719221449149,-481.76,0.00019178,2]
[330273617,1719221449162,-500.0,0.00019178,2]
[330273618,1719221449174,-709.34,0.00019178,2]
[330273619,1719221449184,-1293.94,0.00019178,2]
[330273620,1719221449195,-509.57208016,0.00019178,2]
[330273621,1719221449205,-500.0,0.00019178,2]
[330273622,1719221449216,-500.0,0.00019178,2]
[330273623,1719221449226,-500.0,0.00019178,2]
[330273624,1719221449237,-1278.17,0.00019178,2]
[330273625,1719221449247,-500.0,0.00019178,2]
[330273626,1719221449256,-1892.22,0.00019178,2]
[330273627,1719221449268,-924.07,0.00019178,2]
[330273628,1719221449278,-500.0,0.00019178,2]
[330273629,1719221449287,-320.581286,0.00019178,2]
[330273630,1719221449297,-471.15508796,0.00019178,2]
[330273631,1719221449306,-500.0,0.00019178,2]
[330273632,1719221449316,-985.76,0.00019178,2]
[330273633,1719221449326,-500.0,0.00019178,2]
[330273634,1719221449336,-2011.41,0.00019178,2]
[330273635,1719221449346,-790.64,0.00019178,2]
[330273636,1719221449356,-507.77010484,0.00019178,2]
[330273637,1719221449365,-872.65,0.00019178,2]
[330273638,1719221449375,-1891.81,0.00019178,2]
[330273639,1719221449385,-500.0,0.00019178,2]
[330273640,1719221449394,-500.0,0.00019178,2]
[330273641,1719221449404,-500.0,0.00019178,2]
[330273642,1719221449414,-500.0,0.00019178,2]
[330273643,1719221449423,-509.63948291,0.00019178,2]
[330273644,1719221449434,-500.0,0.00019178,2]
[330273645,1719221449445,-187.77,0.00019178,2]
[330273646,1719221449455,-500.0,0.00019178,2]
[330273647,1719221449466,-574.92,0.00019178,2]
[330273648,1719221449476,-500.0,0.00019178,2]
[330273649,1719221449486,-502.31898794,0.00019178,2]
[330273650,1719221449496,-788.54,0.00019178,2]
[330273651,1719221449506,-500.0,0.00019178,2]
[330273652,1719221449516,-500.0,0.00019178,2]
[330273653,1719221449526,-500.0,0.00019178,2]
[330273654,1719221449536,-3298.75,0.00019178,2]
[330273655,1719221449546,-1016.82,0.00019178,2]
[330273656,1719221449556,-500.0,0.00019178,2]
[330273657,1719221449566,-854.93,0.00019178,2]
[330273658,1719221449576,-500.0,0.00019178,2]
[330273659,1719221449585,-500.0,0.00019178,2]
[330273660,1719221449595,-500.0,0.00019178,2]
[330273661,1719221449605,-500.0,0.00019178,2]
[330273663,1719221449615,-500.0,0.00019178,2]
[330273665,1719221449625,-542.95456927,0.00019178,2]
[330273667,1719221449635,-2044.66,0.00019178,2]
[330273669,1719221449645,-500.0,0.00019178,2]
[330273671,1719221449656,-500.0,0.00019178,2]
[330273673,1719221449666,-500.0,0.00019178,2]
[330273675,1719221449676,-1350.85,0.00019178,2]
[330273677,1719221449686,-500.0,0.00019178,2]
[330273679,1719221449697,-250.0,0.00019178,2]
[330273681,1719221449707,-955.85753929,0.00019243,2]
[330273683,1719221449717,-200.540806,0.00019289,2]
[330273686,1719221449729,-156.1,0.00019305,2]
[330273688,1719221449740,-305.13007106,0.00019333,2]
[330273690,1719221449751,-172.33294624,0.00019352,2]
[330273691,1719221449762,-1269.62890364,0.00019405,2]
[330273693,1719221449773,-1883.41218816,0.00019413,2]
[330273694,1719221449788,-1217.95661573,0.00019425,2]
[330273695,1719221449800,-68388.87203333,0.00019451,2]
[330273696,1719221449845,-1244.1,0.00019451,2]
[330273697,1719221449859,-623.07,0.00019451,2]
[330273698,1719221449872,-13174.06587318,0.00019451,2]
[330273699,1719221449885,-2104.93626584,0.00019451,2]
[330273700,1719221449898,-288.7740856,0.00019451,2]
[330273701,1719221449912,-12850.20390114,0.00019451,2]
[330273702,1719221449922,-155.0167928,0.00019451,2]
[330273703,1719221449932,-500.0,0.00019452,4]
[330273704,1719221449943,-500.0,0.00019452,4]
[330273705,1719221449953,-666.23,0.00019452,4]
[330273706,1719221449963,-500.0,0.00019452,4]
[330273707,1719221449973,-1209.07,0.00019452,4]
[330273708,1719221449983,-500.0,0.00019452,4]
[330273709,1719221449994,-1731.28,0.00019452,4]
[330273710,1719221450004,-1285.84,0.00019452,4]
[330273711,1719221450014,-1212.55,0.00019452,4]
[330273712,1719221450024,-500.0,0.00019452,4]
[330273713,1719221450035,-518.98542582,0.00019452,4]
[330273714,1719221450045,-500.0,0.00019452,4]
[330273715,1719221450055,-500.0,0.00019452,4]
[330273716,1719221450066,-514.55,0.00019452,4]
[330273717,1719221450078,-518.06242286,0.00019452,4]
[330273718,1719221450094,-506.5952966,0.00019452,4]
[330273719,1719221450105,-707.98,0.00019452,4]
[330273720,1719221450116,-583.57,0.00019452,4]
[330273721,1719221450129,-525.48441037,0.00019452,4]
[330273722,1719221450140,-511.42437917,0.00019452,4]
[330273723,1719221450151,-538.15,0.00019452,4]
[330273724,1719221450162,-673.57,0.00019452,4]
[330273725,1719221450174,-650.34,0.00019452,4]
[330273726,1719221450186,-212.58445299,0.00019452,4]
[330273727,1719221450200,-287.41554701,0.00019452,4]
[330273728,1719221450211,-83.77114231,0.00019452,4]
[330273729,1719221450226,-378.8713931,0.00019452,4]
[330273730,1719221450240,-37.35746459,0.00019452,4]
[330273731,1719221450251,-500.0,0.00019452,4]
[330273732,1719221450262,-500.0,0.00019452,4]
[330273733,1719221450273,-500.0,0.00019452,4]
[330273734,1719221450283,-500.0,0.00019452,4]
[330273735,1719221450295,-534.8815748,0.00019452,4]
[330273736,1719221450305,-540.31096061,0.00019452,4]
[330273737,1719221450320,-141.38903939,0.00019452,4]
[330273738,1719221450331,-500.0,0.00019452,4]
[330273739,1719221450341,-500.0,0.00019452,4]
[330273740,1719221450352,-500.0,0.00019452,4]
[330273741,1719221450364,-525.15273363,0.00019452,4]
[330273742,1719221450374,-500.0,0.00019452,4]
[330273743,1719221450386,-500.0,0.00019452,4]
[330273744,1719221450397,-500.0,0.00019452,4]
[330273745,1719221450408,-500.0,0.00019452,4]
[330273746,1719221450418,-500.0,0.00019452,4]
[330273747,1719221450428,-797.03,0.00019452,4]
[330273748,1719221450439,-500.0,0.00019452,4]
[330273749,1719221450449,-573.41,0.00019452,4]
[330273750,1719221450459,-960.92,0.00019452,4]
[330273751,1719221450469,-520.3,0.00019452,4]
[330273752,1719221450480,-590.36464225,0.00019452,4]
[330273753,1719221450492,-500.0,0.00019452,4]
[330273754,1719221450503,-602.35775886,0.00019452,4]
[330273755,1719221450513,-250.0,0.00019452,4]
[330273756,1719221450523,-500.0,0.00019452,4]
[330273757,1719221450534,-1004.34,0.00019452,4]
[330273758,1719221450544,-649.32778124,0.00019452,4]
[330273759,1719221450555,-604.78707742,0.00019452,4]
[330273760,1719221450566,-572.65435665,0.00019452,4]
[330273761,1719221450577,-514.4,0.00019452,4]